bitfinex-derivatives/quotes_BTCF0:USTF0_20250117
["timestamp","ask_amount","ask_price","bid_price","bid_amount"]
[1737144668719,0.047371,105490.0,105480.0,0.63181601]
[1737144669103,0.3608,105510.0,105480.0,0.58444001]
[1737144669322,0.3608,105510.0,105490.0,0.04737]
[1737144669323,0.04737,105500.0,105490.0,0.04737]
[1737144669911,0.408163,105510.0,105500.0,0.047367]
[1737144670216,0.047361,105520.0,105510.0,0.047362]
[1737144670409,0.047361,105520.0,105510.0,0.492962]
[1737144670612,0.408161,105520.0,105510.0,0.0848]
[1737144670820,0.53737916,105520.0,105510.0,0.0848]
[1737144671111,0.53737916,105520.0,105490.0,0.499571]
[1737144671112,0.047367,105500.0,105490.0,0.499571]
[1737144671317,0.047367,105500.0,105490.0,0.584371]
[1737144672510,0.047367,105500.0,105490.0,0.71655028]
[1737144674516,0.047367,105500.0,105490.0,0.35575028]
[1737144674718,0.047367,105500.0,105490.0,0.22653212]
[1737144675522,0.047367,105500.0,105490.0,0.35575028]
[1737144676313,0.047367,105500.0,105490.0,0.35575041]
[1737144677915,0.53738516,105500.0,105490.0,0.08776125]
[1737144678230,0.53738516,105500.0,105480.0,0.63465842]
[1737144678231,0.047371,105490.0,105480.0,0.22648242]
[1737144679518,0.047371,105490.0,105480.0,0.27385842]
[1737144679825,0.047371,105490.0,105480.0,0.40307658]
[1737144680517,0.047371,105490.0,105480.0,0.68443693]
[1737144680823,0.047371,105490.0,105480.0,1.04523693]
[1737144681022,0.408159,105520.0,105510.0,0.047362]
[1737144681237,0.047359,105520.0,105510.0,0.047362]
[1737144681411,0.047359,105520.0,105510.0,0.53738016]
[1737144682221,0.047359,105520.0,105510.0,0.17658016]
[1737144682927,0.047359,105520.0,105510.0,0.45949285]
[1737144683126,0.047359,105520.0,105510.0,0.28291269]
[1737144683625,0.047359,105520.0,105510.0,0.33027469]
[1737144683823,0.047359,105520.0,105510.0,0.45949285]
[1737144684926,0.047359,105520.0,105510.0,0.33027469]
[1737144685518,0.047359,105520.0,105510.0,0.28291269]
[1737144685716,0.53737716,105520.0,105510.0,0.28291269]
[1737144686019,0.408159,105520.0,105510.0,0.28291269]
[1737144686929,0.495259,105520.0,105510.0,0.28291269]
[1737144687617,0.495259,105520.0,105510.0,0.22659873]
[1737144688224,0.408159,105520.0,105510.0,0.27396073]
[1737144688432,0.408159,105520.0,105510.0,0.40317889]
[1737144688729,0.047359,105520.0,105510.0,0.40317889]
[1737144689424,0.047359,105520.0,105510.0,0.27396073]
[1737144689625,0.047359,105520.0,105510.0,0.33027469]
[1737144690029,0.53737716,105520.0,105510.0,0.28291269]
[1737144690323,0.62827716,105520.0,105510.0,0.28291269]
[1737144691224,0.499059,105520.0,105510.0,0.28291269]
[1737144691529,0.62827716,105520.0,105510.0,0.28291269]
[1737144691913,0.62827716,105520.0,105510.0,0.22679203]
[1737144694017,0.047362,105510.0,105500.0,0.03844009]
[1737144694226,0.499162,105510.0,105500.0,0.03844009]
[1737144694421,0.62838016,105510.0,105500.0,0.03844009]
[1737144695222,0.047367,105500.0,105490.0,0.28291269]
[1737144695421,0.838167,105500.0,105490.0,0.28291269]
[1737144696120,1.05348516,105500.0,105490.0,0.28291269]
[1737144697029,0.924267,105500.0,105490.0,0.28291269]
[1737144698729,1.05348516,105500.0,105490.0,0.28291269]
[1737144700021,0.924267,105500.0,105490.0,0.28291269]
[1737144700420,0.408167,105500.0,105490.0,0.28291269]
[1737144700726,0.047367,105500.0,105490.0,0.28291269]
[1737144700928,0.17658516,105500.0,105490.0,0.28291269]
[1737144701326,0.53738516,105500.0,105490.0,0.28291269]
[1737144701732,0.53738516,105500.0,105490.0,0.33911094]
[1737144702734,0.047371,105490.0,105480.0,0.42723279]
[1737144703125,0.047371,105490.0,105480.0,0.47460879]
[1737144703629,0.047371,105490.0,105480.0,0.78282887]
[1737144704730,0.408171,105490.0,105480.0,0.73545287]
[1737144705332,0.047371,105490.0,105480.0,0.73545287]
[1737144706034,0.047371,105490.0,105480.0,0.78282887]
[1737144706626,0.047371,105490.0,105480.0,0.44371793]
[1737144707035,0.408171,105490.0,105480.0,0.44371793]
[1737144707624,0.53738916,105490.0,105480.0,0.39634193]
[1737144708131,0.62548916,105490.0,105480.0,0.39634193]
[1737144708538,0.75470732,105490.0,105480.0,0.41367614]
[1737144708840,0.71188916,105490.0,105480.0,0.41367614]
[1737144709237,0.71188916,105490.0,105480.0,0.10005714]
[1737144709439,0.75528248,105490.0,105480.0,0.10005714]
[1737144709632,0.66897674,105490.0,105480.0,0.10005714]
[1737144709825,0.047376,105480.0,105470.0,0.2833691]
[1737144710026,0.66918748,105480.0,105470.0,0.2833691]
[1737144710447,0.66918748,105480.0,105450.0,0.181]
[1737144710736,0.49449074,105460.0,105440.0,0.41460378]
[1737144710938,0.58080048,105450.0,105440.0,0.41460378]
[1737144711128,0.67379474,105450.0,105440.0,0.41460378]
[1737144711333,0.71700716,105450.0,105440.0,0.02]
[1737144713830,0.71700716,105450.0,105440.0,1e-06]
[1737144714334,1.14652532,105450.0,105440.0,1e-06]
[1737144714836,0.047403,105420.0,105410.0,0.088]
[1737144715043,0.408203,105420.0,105410.0,0.118]
[1737144715336,0.53772116,105420.0,105410.0,0.118]
[1737144715934,0.63022116,105420.0,105410.0,0.118]
[1737144716246,0.63022116,105420.0,105410.0,0.088]
[1737144716950,0.047407,105410.0,105400.0,0.03968593]
[1737144717240,0.53772516,105410.0,105400.0,0.03968593]
[1737144717742,0.53772516,105410.0,105370.0,0.39460378]
[1737144717743,0.047421,105380.0,105370.0,0.39460378]
[1737144717937,0.769021,105380.0,105360.0,0.79921703]
[1737144718140,0.53774316,105370.0,105360.0,0.37185496]
[1737144718331,0.408225,105370.0,105360.0,0.37185496]
[1737144718736,0.408225,105370.0,105360.0,0.37043157]
[1737144719037,0.408225,105370.0,105360.0,0.0886]
[1737144719937,0.53774316,105370.0,105360.0,0.0886]
[1737144720350,0.04743,105360.0,105340.0,0.132937]
[1737144720649,0.53774816,105360.0,105350.0,0.093]
[1737144720952,0.40823,105360.0,105350.0,0.1793]
[1737144722243,0.408223,105380.0,105350.0,0.66961816]
[1737144722444,0.408223,105380.0,105360.0,0.17694716]
[1737144722642,0.094848,105380.0,105360.0,0.17694716]
[1737144722845,0.047425,105370.0,105360.0,0.17694716]
[1737144723735,0.408222,105380.0,105370.0,0.047425]
[1737144723942,0.4522,105400.0,105370.0,0.17694316]
[1737144724148,0.047417,105390.0,105380.0,0.31121816]
[1737144724341,0.047417,105390.0,105380.0,0.1817]
[1737144724939,0.408217,105390.0,105380.0,0.1817]
[1737144725149,0.53773516,105390.0,105380.0,0.1817]
[1737144725838,0.477421,105380.0,105370.0,0.3608]
[1737144726251,0.477421,105380.0,105370.0,0.408225]
[1737144726547,0.477421,105380.0,105370.0,0.53774316]
[1737144726748,0.43,105380.0,105370.0,0.53774316]
[1737144726943,0.43,105380.0,105370.0,0.62384316]
[1737144729144,0.047414,105400.0,105390.0,0.047414]
[1737144729649,0.047416,105390.0,105380.0,0.49652]
[1737144729950,0.047416,105390.0,105380.0,0.13572]
[1737144730353,0.047416,105390.0,105380.0,0.49652]
[1737144730547,0.047416,105390.0,105380.0,0.62603816]
[1737144730850,0.047408,105410.0,105400.0,0.047407]
[1737144731148,0.047408,105410.0,105400.0,0.53772516]
[1737144732452,0.047408,105410.0,105400.0,0.4471]
[1737144733153,0.047408,105410.0,105400.0,0.3608]
[1737144735259,0.047408,105410.0,105400.0,0.53773016]
[1737144736554,0.04882707,105420.0,105410.0,0.047407]
[1737144736745,0.04882707,105420.0,105410.0,0.62662516]
[1737144736959,0.04882707,105420.0,105410.0,0.136307]
[1737144737642,0.04882707,105420.0,105410.0,0.497107]
[1737144737839,0.04882707,105420.0,105410.0,0.136307]
[1737144738944,0.04882707,105420.0,105410.0,0.0889]
[1737144739150,0.047407,105410.0,105400.0,0.40821]
[1737144741545,0.04882807,105420.0,105410.0,0.047407]
[1737144741747,0.04882807,105420.0,105410.0,0.53772516]
[1737144742461,0.00142407,105420.0,105410.0,0.53772516]
[1737144742751,0.04882707,105420.0,105410.0,0.53772516]
[1737144743056,0.04882707,105420.0,105410.0,0.408207]
[1737144743454,0.04882707,105420.0,105410.0,0.047407]
[1737144743659,0.047407,105410.0,105400.0,0.68934132]
[1737144744155,0.047407,105410.0,105400.0,0.81885948]
[1737144744558,0.047407,105410.0,105400.0,0.46102317]
[1737144744953,0.047407,105410.0,105400.0,0.17989285]
[1737144746356,0.047407,105410.0,105400.0,0.17989294]
[1737144746751,0.047407,105410.0,105400.0,0.54069294]
[1737144746952,0.05868787,105420.0,105400.0,0.54069294]
[1737144746953,0.04882907,105420.0,105410.0,0.047407]
[1737144747156,0.04882907,105420.0,105410.0,0.05037078]
[1737144747875,0.53914723,105420.0,105410.0,0.00296378]
[1737144748263,0.53914723,105420.0,105410.0,0.00296377]
[1737144748759,0.047412,105400.0,105390.0,0.28113032]
[1737144748970,0.89853016,105400.0,105390.0,0.13233886]
[1737144749160,1.57975016,105400.0,105390.0,0.09535459]
[1737144750160,0.047424,105380.0,105360.0,0.4697221]
[1737144750361,0.408224,105380.0,105360.0,0.4697221]
[1737144750952,0.408224,105380.0,105360.0,0.133027]
[1737144752062,0.047424,105380.0,105370.0,0.17694316]
[1737144752750,0.408218,105390.0,105380.0,0.047421]
[1737144752954,1.01342746,105400.0,105390.0,0.047416]
[1737144753153,0.3608,105410.0,105400.0,0.047412]
[1737144753154,0.047409,105410.0,105400.0,0.047412]
[1737144759169,0.408209,105410.0,105400.0,0.047412]
[1737144759361,0.047412,105400.0,105390.0,0.8344091]
[1737144759664,0.047412,105400.0,105390.0,0.7449091]
[1737144760066,0.047412,105400.0,105390.0,0.87442726]
[1737144760475,0.047409,105410.0,105400.0,0.047412]
[1737144760673,0.047409,105410.0,105400.0,0.17989401]
[1737144761368,0.047409,105410.0,105400.0,0.05037585]
[1737144761569,0.047409,105410.0,105400.0,0.38707095]
[1737144762967,0.047409,105410.0,105400.0,0.67990832]
[1737144763680,0.53772716,105410.0,105400.0,0.63249632]
[1737144763868,0.047409,105410.0,105400.0,0.33965895]
[1737144764067,0.408209,105410.0,105400.0,0.33965895]
[1737144765568,0.408209,105410.0,105400.0,0.63272213]
[1737144765969,0.408209,105410.0,105400.0,0.63272232]
[1737144766568,0.408209,105410.0,105400.0,0.33965914]
[1737144768074,0.53772716,105410.0,105400.0,0.33965914]
[1737144768782,0.53772716,105410.0,105400.0,0.63377253]
[1737144769283,0.408209,105410.0,105400.0,0.63377253]
[1737144770379,0.408209,105410.0,105400.0,0.63080849]
[1737144771186,0.408209,105410.0,105400.0,0.63377255]
[1737144771668,0.49459559,105410.0,105400.0,0.63080849]
[1737144773180,0.49459559,105410.0,105400.0,0.3366951]
[1737144773380,0.49459559,105410.0,105400.0,0.33965924]
[1737144773571,0.49459559,105410.0,105400.0,0.3366951]
[1737144774181,0.49459559,105410.0,105400.0,0.33965923]
[1737144774881,0.49459559,105410.0,105400.0,0.00296413]
[1737144775382,0.047411,105400.0,105390.0,0.47049369]
[1737144775773,0.047411,105400.0,105390.0,0.13379859]
[1737144776385,0.047411,105400.0,105390.0,0.13676263]
[1737144776883,0.047411,105400.0,105390.0,0.43084785]
[1737144777270,0.047411,105400.0,105390.0,0.79164785]
[1737144777470,0.047411,105400.0,105390.0,0.43084785]
[1737144778075,0.047411,105400.0,105390.0,0.77179791]
[1737144778276,0.047411,105400.0,105390.0,1.13259786]
[1737144778974,0.047411,105400.0,105390.0,0.77179786]
[1737144779482,0.047411,105400.0,105390.0,1.13259786]
[1737144780182,0.047411,105400.0,105390.0,1.52720164]
[1737144781383,0.047411,105400.0,105390.0,1.44081505]
[1737144781684,0.047411,105400.0,105390.0,1.440815]
[1737144782183,0.047411,105400.0,105390.0,1.82941181]
[1737144782878,0.047411,105400.0,105390.0,1.9157984]
[1737144783088,0.047404,105410.0,105400.0,0.047403]
[1737144783293,0.13379059,105410.0,105400.0,0.49546694]
[1737144784375,0.13379059,105410.0,105400.0,1.49646023]
[1737144785282,0.13379059,105410.0,105400.0,1.44905723]
[1737144785478,0.13379059,105410.0,105400.0,1.84366101]
[1737144785685,0.047404,105410.0,105400.0,1.89107001]
[1737144786490,0.047404,105410.0,105400.0,0.70525816]
[1737144787977,0.05831724,105420.0,105410.0,0.047403]
[1737144788196,0.047396,105430.0,105420.0,0.047398]
[1737144788383,0.047396,105430.0,105420.0,0.49754853]
[1737144788692,0.047396,105430.0,105420.0,0.41116194]
[1737144789082,0.05699797,105430.0,105420.0,0.41116194]
[1737144789277,0.14338456,105430.0,105420.0,0.41116194]
[1737144789484,0.14338456,105430.0,105420.0,0.00296394]
[1737144789792,0.50418456,105430.0,105420.0,0.00296394]
[1737144791290,0.50418456,105430.0,105420.0,0.00296366]
[1737144793090,0.05699797,105430.0,105420.0,0.05036166]
[1737144793291,0.14338456,105430.0,105420.0,0.05036166]
[1737144793478,0.05699797,105430.0,105420.0,0.05036166]
[1737144793883,0.05699797,105430.0,105420.0,0.13926166]
[1737144794488,0.14338456,105430.0,105420.0,0.13926166]
[1737144794793,0.50418456,105430.0,105420.0,0.13926166]
[1737144795294,0.05699797,105430.0,105420.0,0.13926166]
[1737144795491,0.05699797,105430.0,105420.0,0.31536166]
[1737144796983,0.05699797,105430.0,105420.0,0.31536128]
[1737144797580,0.14338456,105430.0,105420.0,0.31536128]
[1737144799592,0.14338456,105430.0,105420.0,0.22656128]
[1737144800690,0.14338456,105430.0,105420.0,0.00296328]
[1737144800895,0.14338456,105430.0,105420.0,0.00296329]
[1737144801282,0.14338456,105430.0,105420.0,0.0029633]
[1737144802185,0.14338456,105430.0,105420.0,0.34328313]
[1737144802389,0.05699797,105430.0,105420.0,0.34328313]
[1737144802589,0.14338456,105430.0,105420.0,0.34328313]
[1737144804593,0.50418456,105430.0,105420.0,0.34328313]
[1737144805890,0.50418456,105430.0,105420.0,0.39068113]
[1737144806197,0.50418456,105430.0,105420.0,0.34328313]
[1737144808203,0.41779797,105430.0,105420.0,0.34328313]
[1737144808500,0.50418456,105430.0,105420.0,0.34328313]
[1737144811699,0.14338456,105430.0,105420.0,0.34328313]
[1737144812500,0.14338456,105430.0,105420.0,0.73469874]
[1737144814999,0.14338456,105430.0,105420.0,0.39756708]
[1737144816605,0.50418456,105430.0,105420.0,0.39756708]
[1737144817106,0.047398,105420.0,105410.0,0.36046642]
[1737144817311,0.75057118,105420.0,105410.0,0.36046642]
[1737144817606,0.66418459,105420.0,105410.0,0.36046642]
[1737144818006,0.75057118,105420.0,105400.0,0.45025801]
[1737144818308,0.047407,105400.0,105390.0,0.49839]
[1737144818508,0.047407,105400.0,105390.0,0.49711]
[1737144818700,0.047407,105400.0,105390.0,0.58349659]
[1737144819199,0.047404,105410.0,105400.0,0.047406]
[1737144819396,0.047404,105410.0,105400.0,0.49459259]
[1737144819605,0.0474,105420.0,105410.0,0.047402]
[1737144819808,0.0474,105420.0,105410.0,0.57678859]
[1737144820002,0.0474,105420.0,105410.0,0.66618859]
[1737144820605,0.0474,105420.0,105410.0,1.00225264]
[1737144821506,0.0474,105420.0,105410.0,1.38340701]
[1737144822702,0.0474,105420.0,105410.0,1.67677772]
[1737144823100,0.05699597,105430.0,105420.0,0.047398]
[1737144823306,0.00142319,105460.0,105450.0,0.047385]
[1737144823505,0.16774068,105470.0,105450.0,0.94175818]
[1737144823702,0.19671076,105480.0,105460.0,0.49456659]
[1737144823910,0.05689634,105480.0,105470.0,0.408174]
[1737144824214,0.14328293,105480.0,105470.0,0.408174]
[1737144824414,0.14328293,105480.0,105470.0,0.3608]
[1737144824607,0.047376,105470.0,105460.0,0.492079]
[1737144824912,0.13376259,105470.0,105460.0,0.4447]
[1737144825416,0.047376,105470.0,105460.0,0.49208]
[1737144825604,0.13376259,105470.0,105460.0,0.49208]
[1737144826115,0.13376259,105470.0,105460.0,1.53422144]
[1737144826505,0.13376259,105470.0,105460.0,1.48684144]
[1737144826906,0.047376,105470.0,105460.0,1.21728301]
[1737144829016,0.047373,105480.0,105470.0,0.047373]
[1737144829309,0.047373,105480.0,105470.0,0.49752121]
[1737144830415,0.047373,105480.0,105470.0,0.41113462]
[1737144830615,0.047373,105480.0,105470.0,1.38862034]
[1737144830913,0.047373,105480.0,105470.0,1.47500693]
[1737144831617,0.047373,105480.0,105470.0,1.47500679]
[1737144832713,0.047373,105480.0,105470.0,1.47204531]
[1737144832915,0.51936289,105490.0,105470.0,1.08600301]
[1737144833117,0.56673289,105490.0,105480.0,0.57675759]
[1737144833616,0.56673289,105490.0,105480.0,0.66601897]
[1737144833820,0.65311948,105490.0,105480.0,0.00296164]
[1737144834119,1.09591948,105490.0,105480.0,0.62959286]
[1737144835117,1.09591948,105490.0,105480.0,0.22544746]
[1737144836415,1.09591948,105490.0,105480.0,0.39451268]
[1737144837522,1.09591948,105490.0,105480.0,0.16906522]
[1737144839418,0.047371,105480.0,105470.0,0.10909969]
[1737144839622,0.58094418,105480.0,105470.0,0.10909969]
[1737144840610,0.58094418,105480.0,105450.0,0.25446613]
[1737144840611,0.047376,105470.0,105450.0,0.25446613]
[1737144840812,0.85536659,105460.0,105450.0,0.23446613]
[1737144841021,0.94175318,105460.0,105450.0,0.09646613]
[1737144841523,0.85536659,105460.0,105450.0,0.09646613]
[1737144842115,0.047393,105430.0,105420.0,0.87086622]
[1737144842316,0.047393,105430.0,105420.0,0.42367963]
[1737144842716,0.13377959,105430.0,105420.0,0.42367963]
[1737144842920,0.047393,105430.0,105420.0,0.55746422]
[1737144843222,0.047393,105430.0,105420.0,0.49057708]
[1737144843525,0.047393,105430.0,105420.0,0.85137708]
[1737144844314,0.047393,105430.0,105420.0,0.49057708]
[1737144844715,0.047393,105430.0,105420.0,0.40419049]
[1737144844922,0.13377959,105430.0,105420.0,0.40419049]
[1737144845721,0.047393,105430.0,105420.0,0.40419049]
[1737144845916,0.00951084,105440.0,105420.0,0.89036567]
[1737144846229,0.08638659,105450.0,105430.0,0.49457859]
[1737144846425,0.13377559,105440.0,105430.0,0.408192]
[1737144846624,0.047393,105430.0,105420.0,0.76498949]
[1737144846825,0.047393,105430.0,105420.0,1.47057042]
[1737144847328,0.49457959,105430.0,105420.0,1.06237342]
[1737144847527,0.49457959,105430.0,105420.0,0.92833842]
[1737144847828,0.75626618,105430.0,105420.0,0.79800542]
[1737144848028,0.66987959,105430.0,105420.0,0.75046502]
[1737144848925,0.75626618,105430.0,105420.0,0.75046502]
[1737144849322,0.71308348,105430.0,105420.0,0.75046502]
[1737144849520,0.71308348,105430.0,105390.0,1.00753442]
[1737144849715,0.094811,105410.0,105390.0,1.00629442]
[1737144849922,0.047407,105400.0,105390.0,1.00629442]
[1737144850428,0.047407,105400.0,105390.0,0.98549318]
[1737144851127,0.047404,105410.0,105400.0,0.047406]
[1737144851529,0.17699448,105410.0,105400.0,0.047406]
[1737144852223,0.32699448,105410.0,105400.0,0.047406]
[1737144852428,0.32699448,105410.0,105400.0,0.38611196]
[1737144853223,0.32699448,105410.0,105400.0,0.047406]
[1737144854017,0.047407,105400.0,105390.0,1.00641596]
[1737144854228,0.17699748,105400.0,105390.0,1.00641596]
[1737144856433,0.047407,105400.0,105390.0,0.66771]
[1737144857720,0.40614473,105410.0,105390.0,0.66771]
[1737144857927,0.047407,105400.0,105390.0,0.66771]
[1737144860230,0.05673959,105400.0,105390.0,0.66771]
[1737144861429,0.047407,105400.0,105390.0,0.79730048]
[1737144861828,0.047407,105400.0,105390.0,0.66771]
[1737144862031,0.17699748,105400.0,105390.0,0.66771]
[1737144862931,0.17699748,105400.0,105390.0,0.40821]
[1737144863137,0.047411,105390.0,105380.0,0.33870596]
[1737144863330,0.53780148,105390.0,105380.0,0.32762988]
[1737144863550,1.04772148,105390.0,105380.0,0.32762988]
[1737144864438,0.047425,105360.0,105350.0,0.667169]
[1737144864626,0.047425,105360.0,105350.0,0.665929]
[1737144865336,0.047425,105360.0,105350.0,0.93990093]
[1737144866540,0.17701548,105360.0,105350.0,0.93990093]
[1737144866930,0.17701548,105360.0,105350.0,0.80587193]
[1737144868039,0.17701548,105360.0,105350.0,0.27397193]
[1737144868040,0.53781548,105360.0,105350.0,0.27397193]
[1737144869344,0.53781548,105360.0,105350.0,0.27693742]
[1737144869646,0.58122168,105360.0,105350.0,0.27693742]
[1737144869838,0.58122168,105360.0,105350.0,0.27397193]
[1737144870237,0.047429,105350.0,105340.0,0.047432]
[1737144870437,0.13392734,105350.0,105340.0,0.047432]
[1737144870941,0.41770709,105360.0,105350.0,0.047429]
[1737144871443,0.05690709,105360.0,105350.0,0.408229]
[1737144871639,0.14340543,105360.0,105350.0,0.047429]
[1737144871836,0.047429,105350.0,105340.0,0.9667833]
[1737144872041,0.13392734,105350.0,105340.0,0.9667833]
[1737144872432,0.13392734,105350.0,105340.0,0.6906546]
[1737144874544,0.13392734,105350.0,105340.0,0.9656699]
[1737144874948,0.13392734,105350.0,105340.0,0.9182369]
[1737144875439,0.13392734,105350.0,105340.0,0.6432216]
[1737144877849,0.13392734,105350.0,105340.0,0.91832055]
[1737144878648,0.05690609,105360.0,105350.0,0.047429]
[1737144878834,0.41770609,105360.0,105350.0,0.139629]
[1737144879034,0.05690609,105360.0,105350.0,0.500429]
[1737144880146,0.14340443,105360.0,105350.0,1.05794955]
[1737144881243,0.05690609,105360.0,105350.0,1.14444789]
[1737144882347,0.05690609,105360.0,105350.0,1.05794955]
[1737144884349,0.08649834,105360.0,105350.0,1.05794955]
[1737144884549,0.047426,105360.0,105350.0,1.05794955]
[1737144885243,0.047426,105360.0,105350.0,1.14444789]
[1737144885644,0.047426,105360.0,105350.0,1.05794955]
[1737144885941,0.047426,105360.0,105350.0,0.69714955]
[1737144886147,0.13392434,105360.0,105350.0,0.69714955]
[1737144887248,0.13392434,105360.0,105350.0,1.05794955]
[1737144887863,0.047426,105360.0,105350.0,0.69714955]
[1737144888052,0.047426,105360.0,105350.0,1.05794955]
[1737144888249,0.047426,105360.0,105350.0,1.14444789]
[1737144888650,0.01180081,105370.0,105360.0,0.047425]
[1737144888851,0.047418,105380.0,105370.0,0.047419]
[1737144889043,0.13391634,105380.0,105370.0,0.408219]
[1737144889443,1.04782,105390.0,105370.0,0.49471734]
[1737144889654,0.36222371,105420.0,105390.0,0.047407]
[1737144889948,0.08649834,105410.0,105400.0,0.047404]
[1737144890154,0.08649834,105410.0,105400.0,0.140104]
[1737144890949,0.44729834,105410.0,105390.0,0.69710732]
[1737144891149,0.08649834,105400.0,105390.0,0.69710732]
[1737144891348,0.08649834,105400.0,105390.0,1.05790732]
[1737144891564,0.08649834,105400.0,105390.0,1.12208318]
[1737144892751,0.44729834,105410.0,105400.0,0.047407]
[1737144893151,0.63791371,105420.0,105400.0,0.13390534]
[1737144893355,0.01351537,105420.0,105410.0,0.49470034]
[1737144893555,0.01351537,105420.0,105410.0,0.57940034]
[1737144893754,0.00142371,105420.0,105410.0,0.57940034]
[1737144893955,0.7066143,105460.0,105420.0,0.047398]
[1737144894154,0.7066143,105460.0,105440.0,0.047385]
[1737144894155,0.94646019,105460.0,105440.0,0.047385]
[1737144894361,0.76976185,105460.0,105450.0,0.047385]
[1737144894668,0.36157985,105460.0,105450.0,0.047385]
[1737144894853,0.01176389,105460.0,105450.0,0.49468334]
[1737144895162,0.51008,105470.0,105460.0,0.04738]
[1737144895362,0.51008,105470.0,105460.0,0.49467834]
[1737144896249,0.51008,105470.0,105460.0,0.40818]
[1737144896452,0.59657834,105470.0,105460.0,0.04738]
[1737144896859,0.64395434,105470.0,105460.0,0.04738]
[1737144897363,0.6395246,105470.0,105460.0,0.04738]
[1737144897556,0.54142314,105490.0,105470.0,0.047376]
[1737144897557,0.18062314,105490.0,105470.0,0.047376]
[1737144897755,0.67086774,105490.0,105480.0,0.047371]
[1737144897958,0.55351442,105490.0,105480.0,0.047371]
[1737144898154,0.19271442,105490.0,105480.0,0.047371]
[1737144898351,0.55351442,105490.0,105480.0,0.047371]
[1737144898560,0.19271442,105490.0,105480.0,0.047371]
[1737144900565,0.18062314,105490.0,105480.0,0.047371]
[1737144900758,0.00142314,105490.0,105480.0,0.5376156]
[1737144900953,0.1,105500.0,105480.0,0.5376156]
[1737144901259,0.1,105500.0,105490.0,0.5376116]
[1737144901456,0.50996,105510.0,105490.0,0.5376116]
[1737144901655,0.3608,105530.0,105520.0,0.047351]
[1737144901858,0.4902446,105530.0,105520.0,0.047351]
[1737144902165,0.01330777,105540.0,105530.0,0.047349]
[1737144902363,0.01330777,105540.0,105530.0,0.408149]
[1737144902662,0.00142208,105540.0,105530.0,0.5375936]
[1737144902961,0.13086668,105540.0,105530.0,0.047349]
[1737144903169,0.00142208,105540.0,105530.0,0.047349]
[1737144904462,0.00142208,105540.0,105530.0,0.408149]
[1737144904667,0.00142208,105540.0,105530.0,0.047349]
[1737144906462,0.00142208,105540.0,105530.0,0.408149]
[1737144906878,0.00142208,105540.0,105530.0,0.047349]
[1737144907065,0.00142208,105540.0,105530.0,0.408149]
[1737144907265,0.00142208,105540.0,105530.0,0.5375936]
[1737144909160,0.047335,105560.0,105550.0,0.04734]
[1737144909957,0.05912256,105560.0,105550.0,0.04734]
[1737144910161,0.05912256,105560.0,105550.0,0.40814]
[1737144911067,0.05912256,105560.0,105550.0,0.04734]
[1737144912172,0.01178756,105560.0,105550.0,0.40814]
[1737144912374,0.8572566,105570.0,105550.0,0.3608]
[1737144912569,0.8572566,105570.0,105560.0,0.047335]
[1737144912772,0.68048,105570.0,105560.0,0.047335]
[1737144912988,0.8099246,105570.0,105560.0,0.047335]
[1737144913170,1.2180556,105570.0,105560.0,0.047335]
[1737144913668,0.047335,105560.0,105550.0,0.047338]
[1737144913876,0.1767796,105560.0,105550.0,0.047338]
[1737144914279,0.15,105550.0,105540.0,0.5375886]
[1737144914574,0.15,105550.0,105540.0,0.8983886]
[1737144914767,0.15,105550.0,105540.0,0.9870886]
[1737144915371,0.73969768,105570.0,105560.0,0.047335]
[1737144915372,0.52176668,105570.0,105560.0,0.047335]
[1737144915575,0.52176668,105570.0,105560.0,0.408135]
[1737144916167,0.33331447,105570.0,105560.0,0.047335]
[1737144916366,0.33331447,105570.0,105550.0,0.496738]
[1737144916367,0.82355907,105570.0,105550.0,0.496738]
[1737144916568,0.047335,105560.0,105550.0,0.408138]
[1737144916769,0.51009107,105570.0,105560.0,0.047335]
[1737144917470,0.87089107,105570.0,105560.0,0.047335]
[1737144917863,0.047344,105550.0,105540.0,0.047343]
[1737144918166,0.047353,105530.0,105510.0,0.047354]
[1737144918370,0.047353,105520.0,105510.0,0.047354]
[1737144918873,0.1767976,105520.0,105510.0,0.047354]
[1737144919466,0.047353,105520.0,105510.0,0.047354]
[1737144919862,0.047358,105510.0,105500.0,0.578661]
[1737144920061,0.047358,105510.0,105500.0,0.408161]
[1737144920467,0.047354,105520.0,105510.0,0.047355]
[1737144920868,0.1767986,105520.0,105510.0,0.047355]
[1737144921065,0.1767986,105520.0,105500.0,0.3608]
[1737144921370,0.047358,105510.0,105500.0,0.408161]
[1737144922076,0.047354,105520.0,105510.0,0.047354]
[1737144922377,0.047354,105520.0,105510.0,0.408154]
[1737144924280,0.15,105520.0,105510.0,0.5375986]
[1737144924475,0.04735,105530.0,105520.0,0.047353]
[1737144924674,0.1767946,105530.0,105510.0,0.3608]
[1737144924876,0.197353,105520.0,105510.0,0.408156]
[1737144925178,0.15,105520.0,105510.0,0.5376006]
[1737144925863,0.047346,105540.0,105530.0,0.047349]
[1737144926067,0.047346,105540.0,105530.0,0.408149]
[1737144926876,0.047346,105540.0,105530.0,0.3608]
[1737144926877,0.1767906,105540.0,105530.0,0.3608]
[1737144927377,0.1767906,105540.0,105520.0,0.408151]
[1737144927575,0.047349,105530.0,105520.0,0.408151]
[1737144928769,0.047349,105530.0,105520.0,0.63150579]
[1737144930974,0.047349,105530.0,105520.0,0.71970579]
[1737144931375,0.047349,105530.0,105520.0,0.27070579]
[1737144931575,0.1767936,105530.0,105520.0,0.27070579]
[1737144931879,0.5375936,105530.0,105520.0,0.22335479]
[1737144933381,0.047353,105520.0,105510.0,0.50136435]
[1737144933685,0.7173976,105520.0,105510.0,0.50136435]
[1737144934678,0.047358,105510.0,105500.0,0.22335479]
[1737144934879,0.5376026,105510.0,105500.0,0.03227043]
[1737144935482,0.047362,105500.0,105490.0,0.27800956]
[1737144935683,0.5376066,105500.0,105490.0,0.27800956]
[1737144936069,0.5376066,105500.0,105470.0,0.047374]
[1737144936070,0.047371,105480.0,105470.0,0.047374]
[1737144936269,0.1294446,105480.0,105460.0,1.24392104]
[1737144936474,0.4458,105490.0,105460.0,1.24392104]
[1737144936475,0.1768196,105470.0,105460.0,1.29129904]
[1737144936675,0.047375,105470.0,105460.0,1.29129904]
[1737144937280,0.047375,105470.0,105460.0,0.84529904]
[1737144937482,0.047375,105470.0,105460.0,1.20609904]
[1737144937683,0.047375,105470.0,105460.0,0.594478]